Workbook

Sheet List1
B3: Cena podkladu | D3: 180 | G3: =CallCena(CenaPodkladu, Strike, ZivotOpce, Uroky, Volatilita, Dividenda)
B4: Entry datum | D4: 2020-05-01 | G4: =CallCena(D3,D10,D14,D7,D6,D8) -> 6.300033602 | H4: =CallCena(D3;D10;D13;D7;D6;D8)
B5: Exit datum | D5: 2020-05-31
B6: Volatilita | D6: 0.3 | G6: =PutCena(CenaPodkladu, Strike, ZivotOpce, Uroky, Volatilita, Dividenda)
B7: Úroky | D7: 0.0175 | G7: =PutCena(D3,D10,D14,D7,D6,D8) -> 6.041315601 | H7: =PutCena(D3;D10;D13;D7;D6;D8)
B8: Dividenda | D8: 0
B10: Strike | D10: 180 | G10: Cena Call | I10: Strike | K10: Cena Put
B11: Krok Strike | D11: 1 | G11: =CallCena($D$3,I11,$D$14,$D$7,$D$6,$D$8) -> 9.066717962 | H11: ITM | I11: =I12-$D$11 -> 175 | J11: OTM | K11: =PutCena($D$3,I11,$D$14,$D$7,$D$6,$D$8) -> 3.815186573
G12: =CallCena($D$3,I12,$D$14,$D$7,$D$6,$D$8) -> 8.461917105 | H12: ITM | I12: 176 | J12: OTM | K12: =PutCena($D$3,I12,$D$14,$D$7,$D$6,$D$8) -> 4.208948393
B13: Do expirace (dny) | D13: =D5-D4 -> 30 | E13: =D5-D4 | G13: 7.882707284 | H13: ITM | I13: 177 | J13: OTM | K13: 4.62830125
B14: Život opce (roční) | D14: =(D5-D4)/365 -> 0.08219178082 | E14: =(D5-D4)/365 | G14: 7.329284929 | H14: ITM | I14: 178 | J14: OTM | K14: 5.073441573
G15: 6.801735369 | H15: ITM | I15: =I16-$D$11 -> 179 | J15: OTM | K15: 5.544454691
G16: 6.300033602 | H16: ATM | I16: =ROUND(D3,0) -> 180 | J16: ATM | K16: 6.041315601
G17: 5.82404644 | H17: OTM | I17: =I16+$D$11 -> 181 | J17: ITM | K17: 6.563891117
G18: 5.373535957 | H18: OTM | I18: =I17+$D$11 -> 182 | J18: ITM | K18: 7.111943311
G19: 4.948164125 | H19: OTM | I19: 183 | J19: ITM | K19: 7.685134158
G20: 4.547498518 | H20: OTM | I20: 184 | J20: ITM | K20: 8.283031229
G21: 4.171018938 | H21: OTM | I21: 185 | J21: ITM | K21: 8.905114326
G22: 3.818124815 | H22: OTM | I22: =I21+$D$11 -> 186 | J22: ITM | K22: 9.550782881

Sheet List2
C2: EOD/SPY/4 | G2: bez ln | H2: s ln
C3: EOD/SPY | G3: (21 dnů perioda) | H3: (21 dnů perioda) | I3: bez ln | J3: s ln | M3: (30 obch. dnů perioda) | P3: (21 obch. dnů perioda)
B4: Date | C4: Close | E4: bez ln | F4: s ln | G4: měsíc | H4: měsíc | I4: 30? denní HV | L4: použití logaritmu | N4: 30 denní HV | Q4: 30 denní HV
B5: 2016-06-03 | C5: 210.28 | E5: =C5/C6-1 -> -0.00298705609 | F5: =LN(C5/C6) -> -0.002991526246 | G5: =STDEV(E5:E25) -> 0.006314563041 | H5: =STDEV(F5:F25) -> 0.006305311507 | I5: =G5*SQRT(252) -> 0.1002405807 | J5: =H5*SQRT(252) -> 0.1000937171 | L5: =LN(C5/C6) -> -0.002991526246 | M5: =STDEV(L5:L34) -> 0.006205510528 | N5: =M5*SQRT(252) -> 0.09850942569 | P5: =STDEV(L5:L25) -> 0.006305311507 | Q5: =P5*SQRT(252) -> 0.1000937171
B6: 2016-06-02 | C6: 210.91 | E6: =C6/C7-1 -> 0.003043705712 | F6: =LN(C6/C7) -> 0.003039083017 | G6: =STDEV(E6:E26) -> 0.006425192782 | H6: 0.006416372115 | I6: =G6*SQRT(252) -> 0.1019967734 | J6: =H6*SQRT(252) -> 0.1018567496 | L6: =LN(C6/C7) -> 0.003039083017 | M6: =STDEV(L6:L35) -> 0.006263426736 | N6: =M6*SQRT(252) -> 0.09942881699 | P6: =STDEV(L6:L26) -> 0.006416372115 | Q6: =P6*SQRT(252) -> 0.1018567496 | S6: =LN(C10/C11)
B7: 2016-06-01 | C7: 210.27 | E7: 0.002049180328 | F7: 0.002047083622 | G7: =STDEV(E7:E27) -> 0.006751321225 | H7: 0.006743867069 | I7: 0.1071739019 | J7: 0.1070555708 | L7: 0.002047083622 | M7: 0.00624153516 | N7: 0.099081299 | P7: 0.006743867069 | Q7: 0.1070555708
B8: 2016-05-31 | C8: 209.84 | E8: -0.001902587519 | F8: -0.001904399738 | G8: =STDEV(E8:E28) -> 0.006936986404 | H8: 0.006929064824 | I8: 0.1101212452 | J8: 0.109995494 | L8: -0.001904399738 | M8: 0.006256933036 | N8: 0.09932573269 | P8: 0.006929064824 | Q8: 0.109995494
B9: 2016-05-27 | C9: 210.24 | E9: 0.004299226139 | F9: 0.00429001087 | G9: =STDEV(E9:E29) -> 0.007046161573 | H9: 0.007038378934 | I9: 0.1118543473 | J9: 0.1117308018 | L9: 0.00429001087 | M9: 0.006368923672 | N9: 0.1011035289 | P9: 0.007038378934 | Q9: 0.1117308018 | S9: =SMODCH.VÝBĚR(L11:L40)
B10: 2016-05-26 | C10: 209.34 | E10: 0.0002866972477 | F10: 0.0002866561579 | G10: =STDEV(E10:E30) -> 0.007301443714 | H10: 0.007294612945 | I10: 0.1159068257 | J10: 0.1157983906 | L10: =LN(C10/C11) -> 0.0002866561579 | M10: 0.006331137756 | N10: 0.1005036961 | P10: 0.007294612945 | Q10: 0.1157983906
B11: 2016-05-25 | C11: 209.28 | E11: 0.006783085582 | F11: 0.006760183961 | G11: =STDEV(E11:E31) -> 0.007314914176 | H11: 0.007308375272 | I11: 0.1161206626 | J11: 0.1160168608 | L11: 0.006760183961 | M11: =STDEV(L11:L40) -> 0.006331194491 | N11: =M11*SQRT(252) -> 0.1005045967 | P11: 0.007308375272 | Q11: 0.1160168608
B12: 2016-05-24 | C12: 207.87 | E12: 0.01296233127 | F12: 0.01287903925 | G12: =STDEV(E12:E32) -> 0.007162921622 | H12: 0.007156399156 | I12: 0.1137078556 | J12: 0.1136043147 | L12: 0.01287903925 | M12: 0.006475724154 | N12: 0.102798934 | P12: 0.007156399156 | Q12: 0.1136043147
B13: 2016-05-23 | C13: 205.21 | E13: -0.00136259672 | F13: -0.001363525899 | G13: =STDEV(E13:E33) -> 0.006506046046 | H13: 0.006504947962 | I13: 0.1032802791 | J13: 0.1032628476 | L13: -0.001363525899 | M13: 0.006264288017 | N13: 0.0994424894 | P13: 0.006504947962 | Q13: 0.1032628476
B14: 2016-05-20 | C14: 205.49 | E14: 0.006317335945 | F14: 0.006297465221 | G14: =STDEV(E14:E34) -> 0.006507410913 | H14: 0.006506523902 | I14: 0.1033019457 | J14: 0.1032878649 | L14: 0.006297465221 | M14: 0.006275262812 | N14: 0.09961670887 | P14: 0.006506523902 | Q14: 0.1032878649 | S14: =M11*ODMOCNINA(252)
B15: 2016-05-19 | C15: 204.2 | E15: -0.003464935825 | F15: -0.003470952618 | G15: =STDEV(E15:E35) -> 0.006368695706 | H15: 0.006367563997 | I15: 0.1010999101 | J15: 0.1010819448 | L15: -0.003470952618 | M15: 0.006187560281 | N15: 0.09822447436 | P15: 0.006367563997 | Q15: 0.1010819448
B16: 2016-05-18 | C16: 204.91 | E16: 0.0002889908167 | F16: 0.0002889490669 | G16: =STDEV(E16:E36) -> 0.006367825464 | H16: 0.00636727791 | I16: 0.1010860954 | J16: 0.1010774033 | L16: 0.0002889490669 | M16: 0.006542728937 | N16: 0.103862602 | P16: 0.00636727791 | Q16: 0.1010774033
B17: 2016-05-17 | C17: 204.8508 | E17: -0.00932972241 | F17: -0.009373516877 | G17: =STDEV(E17:E37) -> 0.006430171575 | H17: 0.006429913814 | I17: 0.1020758093 | J17: 0.1020717174 | L17: -0.009373516877 | M17: 0.00685023126 | N17: 0.10874405 | P17: 0.006429913814 | Q17: 0.1020717174
B18: 2016-05-16 | C18: 206.78 | E18: 0.009865208048 | F18: 0.009816864569 | G18: =STDEV(E18:E38) -> 0.006359382794 | H18: 0.006357179566 | I18: 0.1009520722 | J18: 0.100917097 | L18: 0.009816864569 | M18: 0.006883144836 | N18: 0.1092665369 | P18: 0.006357179566 | Q18: 0.100917097
B19: 2016-05-13 | C19: 204.76 | E19: -0.008714175058 | F19: -0.008752365509 | G19: =STDEV(E19:E39) -> 0.005926153529 | H19: 0.005926327729 | I19: 0.09407477081 | J19: 0.09407753615 | L19: -0.008752365509 | M19: 0.00665569348 | N19: 0.1056558585 | P19: 0.005926327729 | Q19: 0.09407753615
B20: 2016-05-12 | C20: 206.56 | E20: 0.0002905569007 | F20: 0.0002905146972 | G20: =STDEV(E20:E40) -> 0.005637534834 | H20: 0.005636192741 | I20: 0.08949309108 | J20: 0.089471786 | L20: 0.0002905146972 | M20: 0.00658356335 | N20: 0.1045108282 | P20: 0.005636192741 | Q20: 0.089471786
B21: 2016-05-11 | C21: 206.5 | E21: -0.009354761334 | F21: -0.009398791926 | G21: =STDEV(E21:E41) -> 0.006079773092 | H21: 0.006075605361 | I21: 0.09651340578 | J21: 0.09644724509 | L21: -0.009398791926 | M21: 0.006600534561 | N21: 0.1047802378 | P21: 0.006075605361 | Q21: 0.09644724509
B22: 2016-05-10 | C22: 208.45 | E22: 0.01243775778 | F22: 0.01236104432 | G22: =STDEV(E22:E42) -> 0.005984270541 | H22: 0.005975973583 | I22: 0.09499734978 | J22: 0.09486563965 | L22: 0.01236104432 | M22: 0.006394450253 | N22: 0.1015087508 | P22: 0.005975973583 | Q22: 0.09486563965
B23: 2016-05-09 | C23: 205.8892 | E23: 0.0008224771534 | F23: 0.0008221391044 | G23: =STDEV(E23:E43) -> 0.005419290737 | H23: 0.005416357558 | I23: 0.08602857343 | J23: 0.08598201067 | L23: 0.0008221391044 | M23: 0.006217016425 | N23: 0.09869207615 | P23: 0.005416357558 | Q23: 0.08598201067
B24: 2016-05-06 | C24: 205.72 | E24: 0.003659072059 | F24: 0.003652393941 | G24: =STDEV(E24:E44) -> 0.005442992406 | H24: 0.005440238613 | I24: 0.08640482577 | J24: 0.08636111066 | L24: 0.003652393941 | M24: 0.006216658711 | N24: 0.09868639761 | P24: 0.005440238613 | Q24: 0.08636111066
B25: 2016-05-05 | C25: 204.97 | E25: -0.0001951124335 | F25: -0.0001951314704 | G25: =STDEV(E25:E45) -> 0.006016616854 | H25: 0.006019502739 | I25: 0.09551083159 | J25: 0.09555664359 | L25: -0.0001951314704 | M25: 0.006188205147 | N25: 0.09823471128 | P25: 0.006019502739 | Q25: 0.09555664359
B26: 2016-05-04 | C26: 205.01 | E26: -0.005574332846 | F26: -0.005589927419 | G26: =STDEV(E26:E46) -> 0.006498103394 | H26: 0.006497377117 | I26: 0.1031541934 | J26: 0.1031426642 | L26: -0.005589927419 | M26: 0.006315552549 | N26: 0.1002562886 | P26: 0.006497377117 | Q26: 0.1031426642
B27: 2016-05-03 | C27: 206.1592 | E27: -0.008707025052 | F27: -0.008745152674 | G27: =STDEV(E27:E47) -> 0.006760936788 | H27: 0.006762654879 | I27: 0.1073265442 | J27: 0.1073538181 | L27: -0.008745152674 | M27: 0.00622605932 | N27: 0.09883562765 | P27: 0.006762654879 | Q27: 0.1073538181
B28: 2016-05-02 | C28: 207.97 | E28: 0.007944524036 | F28: 0.007913132456 | G28: =STDEV(E28:E48) -> 0.00650939452 | H28: 0.006509608462 | I28: 0.1033334345 | J28: 0.1033368307 | L28: 0.007913132456 | M28: 0.005992318366 | N28: 0.09512510503 | P28: 0.006509608462 | Q28: 0.1033368307
B29: 2016-04-29 | C29: 206.3308 | E29: -0.005383048723 | F29: -0.005397589536 | G29: =STDEV(E29:E49) -> 0.006446947788 | H29: 0.006447686411 | I29: 0.1023421234 | J29: 0.1023538487 | L29: -0.005397589536 | M29: 0.00583694651 | N29: 0.0926586533 | P29: 0.006447686411 | Q29: 0.1023538487
B30: 2016-04-28 | C30: 207.4475 | E30: -0.009087652257 | F30: -0.009129196856 | G30: =STDEV(E30:E50) -> 0.006350330007 | H30: 0.006350950336 | I30: 0.1008083637 | J30: 0.1008182111 | L30: -0.009129196856 | M30: 0.005836388699 | N30: 0.09264979831 | P30: 0.006350950336 | Q30: 0.1008182111
B31: 2016-04-27 | C31: 209.35 | E31: 0.00206204121 | F31: 0.002059918121 | G31: =STDEV(E31:E51) -> 0.006021402688 | H31: 0.006020463246 | I31: 0.09558680434 | J31: 0.09557189116 | L31: 0.002059918121 | M31: 0.005603358294 | N31: 0.08895055531 | P31: 0.006020463246 | Q31: 0.09557189116
B32: 2016-04-26 | C32: 208.9192 | E32: 0.001482191649 | F32: 0.001481094288 | G32: =STDEV(E32:E52) -> 0.006284244968 | H32: 0.006281690595 | I32: 0.09975929618 | J32: 0.09971874677 | L32: 0.001481094288 | M32: 0.00562347563 | N32: 0.08926990813 | P32: 0.006281690595 | Q32: 0.09971874677
B33: 2016-04-25 | C33: 208.61 | E33: -0.001722735321 | F33: -0.001724220936 | G33: =STDEV(E33:E53) -> 0.006286190365 | H33: 0.006283500087 | I33: 0.0997901784 | J33: 0.09974747156 | L33: -0.001724220936 | M33: 0.005638628903 | N33: 0.08951045888 | P33: 0.006283500087 | Q33: 0.09974747156
B34: 2016-04-22 | C34: 208.97 | E34: 0 | F34: 0 | G34: =STDEV(E34:E54) -> 0.006261625392 | H34: 0.006259090889 | I34: 0.09940022155 | J34: 0.09935998756 | L34: 0 | M34: 0.006245594841 | N34: 0.09914574443 | P34: 0.006259090889 | Q34: 0.09935998756
B35: 2016-04-21 | C35: 208.97 | E35: -0.005378391242 | F35: -0.005392906859 | G35: =STDEV(E35:E55) -> 0.00649433213 | H35: 0.006492180945 | I35: 0.1030943265 | J35: 0.1030601775 | L35: -0.005392906859 | M35: 0.006240492982 | N35: 0.09906475493 | P35: 0.006492180945 | Q35: 0.1030601775
B36: 2016-04-20 | C36: 210.1 | E36: 0.0009528346832 | F36: 0.0009523810244 | G36: =STDEV(E36:E56) -> 0.006339320385 | H36: 0.006337145772 | I36: 0.1006335913 | J36: 0.1005990704 | L36: 0.0009523810244 | M36: 0.006127080008 | N36: 0.09726437979 | P36: 0.006337145772 | Q36: 0.1005990704
B37: 2016-04-19 | C37: 209.9 | E37: 0.003158108041 | F37: 0.003153131692 | G37: =STDEV(E37:E57) -> 0.006338982092 | H37: 0.006336878278 | I37: 0.1006282211 | J37: 0.1005948241 | L37: 0.003153131692 | M37: 0.006563025172 | N37: 0.1041847947 | P37: 0.006336878278 | Q37: 0.1005948241
B38: 2016-04-18 | C38: 209.2392 | E38: 0.00702281259 | F38: 0.006998267492 | G38: =STDEV(E38:E58) -> 0.006346457777 | H38: 0.006343763748 | I38: 0.1007468939 | J38: 0.1007041275 | L38: 0.006998267492 | M38: 0.006556803809 | N38: 0.1040860336 | P38: 0.006343763748 | Q38: 0.1007041275
B39: 2016-04-15 | C39: 207.78 | E39: -0.001105716071 | F39: -0.001106327826 | G39: =STDEV(E39:E59) -> 0.006316337641 | H39: 0.006313845495 | I39: 0.1002687516 | J39: 0.10022919 | L39: -0.001106327826 | M39: 0.006482646381 | N39: 0.102908821 | P39: 0.006313845495 | Q39: 0.10022919
B40: 2016-04-14 | C40: 208.01 | E40: 4.423059911e-05 | F40: 4.422962097e-05 | G40: =STDEV(E40:E60) -> 0.006377617026 | H40: 0.006375613875 | I40: 0.1012415317 | J40: 0.1012097326 | L40: 4.422962097e-05 | M40: 0.006482579093 | N40: 0.1029077528 | P40: 0.006375613875 | Q40: 0.1012097326
B41: 2016-04-13 | C41: 208.0008 | E41: 0.0101048951 | F41: 0.010054182 | G41: =STDEV(E41:E61) -> 0.006405497335 | H41: 0.006403267886 | I41: 0.1016841178 | J41: 0.1016487264 | L41: 0.010054182 | M41: 0.006499396735 | N41: 0.1031747246 | P41: 0.006403267886 | Q41: 0.1016487264
B42: 2016-04-12 | C42: 205.92 | E42: 0.009312317757 | F42: 0.009269225446 | G42: =STDEV(E42:E62) -> 0.006097125679 | H42: 0.00609678305 | I42: 0.09678886956 | J42: 0.09678343049 | L42: 0.009269225446 | M42: 0.007462999743 | N42: 0.1184714481 | P42: 0.00609678305 | Q42: 0.09678343049
B43: 2016-04-11 | C43: 204.0201 | E43: -0.002342796451 | F43: -0.002345545092 | G43: =STDEV(E43:E63) -> 0.006725588895 | H43: 0.006714440177 | I43: 0.1067654138 | J43: 0.1065884334 | L43: -0.002345545092 | M43: 0.007547863533 | N43: 0.119818619 | P43: 0.006714440177 | Q43: 0.1065884334
B44: 2016-04-08 | C44: 204.4992 | E44: 0.002692816867 | F44: 0.002689197731 | G44: =STDEV(E44:E64) -> 0.00668043859 | H44: 0.006669662333 | I44: 0.1060486749 | J44: 0.1058776072 | L44: 0.002689197731 | M44: 0.007547209621 | N44: 0.1198082385 | P44: 0.006669662333 | Q44: 0.1058776072
B45: 2016-04-07 | C45: 203.95 | E45: -0.01196589478 | F45: -0.01203806237 | G45: =STDEV(E45:E65) -> 0.006722905959 | H45: 0.006712274407 | I45: 0.1067228235 | J45: 0.1065540529 | L45: -0.01203806237 | M45: 0.00778752149 | N45: 0.1236230711 | P45: 0.006712274407 | Q45: 0.1065540529
B46: 2016-04-06 | C46: 206.42 | E46: 0.01092516157 | F46: 0.01086591313 | G46: =STDEV(E46:E66) -> 0.006622354963 | H46: 0.006610033863 | I46: 0.105126626 | J46: 0.1049310346 | L46: 0.01086591313 | M46: 0.007347343178 | N46: 0.1166354571 | P46: 0.006610033863 | Q46: 0.1049310346
B47: 2016-04-05 | C47: 204.1892 | E47: -0.009991757576 | F47: -0.01004201021 | G47: =STDEV(E47:E67) -> 0.0062513162 | H47: 0.006241249154 | I47: 0.09923656819 | J47: 0.09907675879 | L47: -0.01004201021 | M47: 0.007660183309 | N47: 0.1216016402 | P47: 0.006241249154 | Q47: 0.09907675879
B48: 2016-04-04 | C48: 206.25 | E48: -0.003237966364 | F48: -0.003243219921 | G48: =STDEV(E48:E68) -> 0.005745082711 | H48: 0.005731184241 | I48: 0.09120036069 | J48: 0.09097972931 | L48: -0.003243219921 | M48: 0.007680728535 | N48: 0.1219277856 | P48: 0.005731184241 | Q48: 0.09097972931
B49: 2016-04-01 | C49: 206.92 | E49: 0.006811989101 | F49: 0.006788892334 | G49: =STDEV(E49:E69) -> 0.005658941119 | H49: 0.005645520242 | I49: 0.0898329053 | J49: 0.0896198555 | L49: 0.006788892334 | M49: 0.007627120061 | N49: 0.1210767774 | P49: 0.005645520242 | Q49: 0.0896198555
B50: 2016-03-31 | C50: 205.52 | E50: -0.00242694884 | F50: -0.002429898654 | G50: =STDEV(E50:E70) -> 0.005579852539 | H50: 0.005566688661 | I50: 0.08857741303 | J50: 0.08836844294 | L50: -0.002429898654 | M50: 0.007674010941 | N50: 0.1218211471 | P50: 0.005566688661 | Q50: 0.08836844294
B51: 2016-03-30 | C51: 206.02 | E51: 0.004383758254 | F51: 0.004374177575 | G51: =STDEV(E51:E71) -> 0.007231218453 | H51: 0.007185383422 | I51: 0.1147920342 | J51: 0.1140644257 | L51: 0.004374177575 | M51: 0.008038757705 | N51: 0.1276113224 | P51: 0.007185383422 | Q51: 0.1140644257
B52: 2016-03-29 | C52: 205.1208 | E52: 0.009254083842 | F52: 0.009211527155 | G52: =STDEV(E52:E72) -> 0.007596879424 | H52: 0.007553126783 | I52: 0.1205967222 | J52: 0.1199021705 | L52: 0.009211527155 | M52: 0.008432830922 | N52: 0.1338670408 | P52: 0.007553126783 | Q52: 0.1199021705
B53: 2016-03-28 | C53: 203.24 | E53: 0.0005907837731 | F53: 0.0005906093291 | G53: =STDEV(E53:E73) -> 0.007494878643 | H53: 0.007450374391 | I53: 0.11897751 | J53: 0.1182710269 | L53: 0.0005906093291 | M53: 0.008942689818 | N53: 0.1419607999 | P53: 0.007450374391 | Q53: 0.1182710269
B54: 2016-03-24 | C54: 203.12 | E54: -0.0004389565039 | F54: -0.0004390528735 | G54: =STDEV(E54:E74) -> 0.007811725444 | H54: 0.007766591081 | I54: 0.124007297 | J54: 0.1232908112 | L54: -0.0004390528735 | M54: 0.009432924354 | N54: 0.1497430319 | P54: 0.007766591081 | Q54: 0.1232908112
B55: 2016-03-23 | C55: 203.2092 | E55: -0.006603441533 | F55: -0.006625340713 | G55: =STDEV(E55:E75) -> 0.007796719867 | H55: 0.007752390515 | I55: 0.1237690909 | J55: 0.1230653842 | L55: -0.006625340713 | M55: 0.009438675645 | N55: 0.1498343308 | P55: 0.007752390515 | Q55: 0.1230653842
B56: 2016-03-22 | C56: 204.56 | E56: -0.0005374505301 | F56: -0.0005375950084 | G56: =STDEV(E56:E76) -> 0.008252111113 | H56: 0.008215213859 | I56: 0.1309982028 | J56: 0.130412477 | L56: -0.0005375950084 | M56: 0.00927997548 | N56: 0.1473150438 | P56: 0.008215213859 | Q56: 0.130412477
B57: 2016-03-21 | C57: 204.67 | E57: 0.001418925531 | F57: 0.001417919807 | G57: =STDEV(E57:E77) -> 0.0086297491 | H57: 0.008590650831 | I57: 0.13699302 | J57: 0.1363723542 | L57: 0.001417919807 | M57: 0.009756325501 | N57: 0.1548768659 | P57: 0.008590650831 | Q57: 0.1363723542
B58: 2016-03-18 | C58: 204.38 | E58: -0.001221717246 | F58: -0.001222464151 | G58: =STDEV(E58:E78) -> 0.008657729973 | H58: 0.008618314752 | I58: 0.1374372026 | J58: 0.1368115053 | L58: -0.001222464151 | M58: 0.01055599242 | N58: 0.1675711848 | P58: 0.008618314752 | Q58: 0.1368115053
B59: 2016-03-17 | C59: 204.63 | E59: 0.006344054293 | F59: 0.006324015488 | G59: =STDEV(E59:E79) -> 0.008749914836 | H59: 0.008710575477 | I59: 0.1389005919 | J59: 0.1382760989 | L59: 0.006324015488 | M59: 0.01053750951 | N59: 0.1672777776 | P59: 0.008710575477 | Q59: 0.1382760989
B60: 2016-03-16 | C60: 203.34 | E60: 0.005787208785 | F60: 0.005770527221 | G60: =STDEV(E60:E80) -> 0.009208615579 | H60: 0.009164426944 | I60: 0.1461822405 | J60: 0.1454807676 | L60: 0.005770527221 | M60: 0.0105330681 | N60: 0.1672072724 | P60: 0.009164426944 | Q60: 0.1454807676
B61: 2016-03-15 | C61: 202.17 | E61: -0.00162962963 | F61: -0.00163095892 | G61: =STDEV(E61:E81) -> 0.009663306867 | H61: 0.009614488263 | I61: 0.1534002409 | J61: 0.1526252696 | L61: -0.00163095892 | M61: 0.01114600865 | N61: 0.176937402 | P61: 0.009614488263 | Q61: 0.1526252696
B62: 2016-03-14 | C62: 202.5 | E62: -0.001282304202 | F62: -0.001283127058 | G62: =STDEV(E62:E82) -> 0.01023395124 | H62: 0.01017733912 | I62: 0.1624589395 | J62: 0.16156025 | L62: -0.001283127058 | M62: 0.01113639525 | N62: 0.176784794 | P62: 0.01017733912 | Q62: 0.16156025
B63: 2016-03-11 | C63: 202.76 | E63: 0.01613711537 | F63: 0.01600829612 | G63: =STDEV(E63:E83) -> 0.01088820742 | H63: 0.01083850241 | I63: 0.1728449343 | J63: 0.1720558917 | L63: 0.01600829612 | M63: 0.01185947826 | N63: 0.188263381 | P63: 0.01083850241 | Q63: 0.1720558917
B64: 2016-03-10 | C64: 199.54 | E64: 0.0008024877119 | F64: 0.0008021658908 | G64: =STDEV(E64:E84) -> 0.01059696679 | H64: 0.01054830843 | I64: 0.1682216326 | J64: 0.1674492051 | L64: 0.0008021658908 | M64: 0.01159048383 | N64: 0.1839932267 | P64: 0.01054830843 | Q64: 0.1674492051
B65: 2016-03-09 | C65: 199.38 | E65: 0.004939516129 | F65: 0.004927356744 | G65: =STDEV(E65:E85) -> 0.01060792965 | H65: 0.01055910755 | I65: 0.1683956627 | J65: 0.1676206359 | L65: 0.004927356744 | M65: 0.01182698684 | N65: 0.1877475957 | P65: 0.01055910755 | Q65: 0.1676206359
B66: 2016-03-08 | C66: 198.4 | E66: -0.01091779251 | F66: -0.01097782899 | G66: =STDEV(E66:E86) -> 0.01122637655 | H66: 0.01118208014 | I66: 0.1782132028 | J66: 0.1775100192 | L66: -0.01097782899 | M66: 0.0120146773 | N66: 0.1907270893 | P66: 0.01118208014 | Q66: 0.1775100192
B67: 2016-03-07 | C67: 200.59 | E67: 0.0007982836901 | F67: 0.0007979652311 | G67: =STDEV(E67:E87) -> 0.01184086861 | H67: 0.01180997068 | I67: 0.1879679619 | J67: 0.1874774724 | L67: 0.0007979652311 | M67: 0.01219515405 | N67: 0.1935920689 | P67: 0.01180997068 | Q67: 0.1874774724
B68: 2016-03-04 | C68: 200.43 | E68: 0.003278688525 | F68: 0.003273325345 | G68: =STDEV(E68:E88) -> 0.01183733233 | H68: 0.0118066515 | I68: 0.1879118253 | J68: 0.1874247821 | L68: 0.003273325345 | M68: 0.0126559493 | N68: 0.2009069667 | P68: 0.0118066515 | Q68: 0.1874247821
B69: 2016-03-03 | C69: 199.775 | E69: 0.003894472362 | F69: 0.003886908536 | G69: =STDEV(E69:E89) -> 0.01186349734 | H69: 0.01183342233 | I69: 0.1883271818 | J69: 0.1878497559 | L69: 0.003886908536 | M69: 0.01266869866 | N69: 0.2011093566 | P69: 0.01183342233 | Q69: 0.1878497559
B70: 2016-03-02 | C70: 199 | E70: =C70/C71-1 -> 0.004492453687 | F70: =LN(C70/C71) -> 0.004482392738 | G70: =STDEV(E70:E90) -> 0.01266416226 | H70: 0.01264265465 | I70: =G70*SQRT(252) -> 0.2010373434 | J70: =H70*SQRT(252) -> 0.2006959207 | L70: =LN(C70/C71) -> 0.004482392738 | M70: =STDEV(L70:L99) -> 0.01296984799 | N70: =M70*SQRT(252) -> 0.205889954 | P70: =STDEV(L70:L90) -> 0.01264265465 | Q70: =P70*SQRT(252) -> 0.2006959207
B71: 2016-03-01 | C71: 198.11 | E71: 0.02350692292 | F71: 0.02323489006 | G71: =STDEV(E71:E91) -> 0.0126487256 | H71: 0.01262584572 | I71: 0.2007922941 | J71: 0.2004290872 | L71: 0.02323489006 | M71: 0.0129608436 | N71: 0.2057470137 | P71: 0.01262584572 | Q71: 0.2004290872
B72: 2016-02-29 | C72: 193.56 | E72: -0.007838465686 | F72: -0.007869347944 | G72: =STDEV(E72:E92) -> 0.01272724308 | H72: 0.01270198091 | I72: 0.2020387204 | J72: 0.2016376958 | L72: -0.007869347944 | M72: 0.01299228511 | N72: 0.2062461322 | P72: 0.01270198091 | Q72: 0.2016376958
B73: 2016-02-26 | C73: 195.0892 | E73: -0.002305410658 | F73: -0.002308072208 | G73: =STDEV(E73:E93) -> 0.01258235922 | H73: 0.01255947 | I73: 0.1997387605 | J73: 0.1993754053 | L73: -0.002308072208 | M73: 0.01321617417 | N73: 0.2098002609 | P73: 0.01255947 | Q73: 0.1993754053
B74: 2016-02-25 | C74: 195.54 | E74: 0.01211180124 | F74: 0.0120390403 | G74: =STDEV(E74:E94) -> 0.01285871926 | H74: 0.01283656363 | I74: 0.20412584 | J74: 0.2037741303 | L74: 0.0120390403 | M74: 0.01405712648 | N74: 0.2231499648 | P74: 0.01283656363 | Q74: 0.2037741303
B75: 2016-02-24 | C75: 193.2 | E75: 0.004575707155 | F75: 0.004565270432 | G75: =STDEV(E75:E95) -> 0.01292667728 | H75: 0.01290376003 | I75: 0.2052046401 | J75: 0.2048408401 | L75: 0.004565270432 | M75: 0.01396081547 | N75: 0.221621075 | P75: 0.01290376003 | Q75: 0.2048408401
B76: 2016-02-23 | C76: 192.32 | E76: -0.01262963343 | F76: -0.01271006519 | G76: =STDEV(E76:E96) -> 0.01339592542 | H76: 0.01337479705 | I76: 0.2126537235 | J76: 0.212318321 | L76: -0.01271006519 | M76: 0.0139373699 | N76: 0.2212488881 | P76: 0.01337479705 | Q76: 0.212318321
B77: 2016-02-22 | C77: 194.78 | E77: 0.01447916667 | F77: 0.01437534451 | G77: =STDEV(E77:E97) -> 0.01371628346 | H77: 0.01368772763 | I77: 0.2177392497 | J77: 0.2172859399 | L77: 0.01437534451 | M77: 0.01388730575 | N77: 0.2204541443 | P77: 0.01368772763 | Q77: 0.2172859399
B78: 2016-02-19 | C78: 192 | E78: -0.0004685303764 | F78: -0.000468640171 | G78: =STDEV(E78:E98) -> 0.01345027876 | H78: 0.01342286174 | I78: 0.213516556 | J78: 0.2130813244 | L78: -0.000468640171 | M78: 0.01430671834 | N78: 0.2271121129 | P78: 0.01342286174 | Q78: 0.2130813244
B79: 2016-02-18 | C79: 192.09 | E79: -0.004095810867 | F79: -0.004104221674 | G79: =STDEV(E79:E99) -> 0.01381421059 | H79: 0.01378777581 | I79: 0.2192937946 | J79: 0.2188741556 | L79: -0.004104221674 | M79: 0.01445955322 | N79: 0.2295382914 | P79: 0.01378777581 | Q79: 0.2188741556
B80: 2016-02-17 | C80: 192.88 | E80: 0.01633470334 | F80: 0.01620272733 | G80: =STDEV(E80:E100) -> 0.01376280065 | H80: 0.01373790345 | I80: 0.2184776872 | J80: 0.2180824564 | L80: 0.01620272733 | M80: 0.01446327542 | N80: 0.2295973794 | P80: 0.01373790345 | Q80: 0.2180824564
B81: 2016-02-16 | C81: 189.78 | E81: 0.01687831538 | F81: 0.01673745935 | G81: =STDEV(E81:E101) -> 0.01417213309 | H81: 0.01416104267 | I81: 0.2249756382 | J81: 0.2247995833 | L81: 0.01673745935 | M81: 0.01424920997 | N81: 0.2261991958 | P81: 0.01416104267 | Q81: 0.2247995833
B82: 2016-02-12 | C82: 186.63 | E82: 0.02061686536 | F82: 0.02040721446 | G82: =STDEV(E82:E102) -> 0.01414426868 | H82: 0.01413368025 | I82: 0.2245333044 | J82: 0.2243652184 | L82: 0.02040721446 | M82: 0.01384303105 | N82: 0.2197513053 | P82: 0.01413368025 | Q82: 0.2243652184
B83: 2016-02-11 | C83: 182.86 | E83: -0.01300804232 | F83: -0.01309338783 | G83: =STDEV(E83:E103) -> 0.0142431917 | H83: 0.01425938216 | I83: 0.2261036586 | J83: 0.2263606743 | L83: -0.01309338783 | M83: 0.01311172534 | N83: 0.208142187 | P83: 0.01425938216 | Q83: 0.2263606743
B84: 2016-02-10 | C84: 185.27 | E84: -0.0008628593 | F84: -0.0008632317774 | G84: =STDEV(E84:E104) -> 0.01421820383 | H84: 0.01423734782 | I84: 0.2257069886 | J84: 0.22601089 | L84: -0.0008632317774 | M84: 0.01327060284 | N84: 0.2106642892 | P84: 0.01423734782 | Q84: 0.22601089
B85: 2016-02-09 | C85: 185.43 | E85: 5.393161471e-05 | F85: 5.393016046e-05 | G85: =STDEV(E85:E105) -> 0.01422879882 | H85: 0.01424855622 | I85: 0.2258751788 | J85: 0.2261888178 | L85: 5.393016046e-05 | M85: 0.01326373273 | N85: 0.2105552296 | P85: 0.01424855622 | Q85: 0.2261888178
B86: 2016-02-08 | C86: 185.42 | E86: -0.01346102687 | F86: -0.01355244783 | G86: =STDEV(E86:E106) -> 0.0143693955 | H86: 0.01438706957 | I86: 0.2281070819 | J86: 0.228387649 | L86: -0.01355244783 | M86: 0.01325182436 | N86: 0.21036619 | P86: 0.01438706957 | Q86: 0.228387649
B87: 2016-02-05 | C87: 187.95 | E87: -0.01905010438 | F87: -0.01923389553 | G87: =STDEV(E87:E107) -> 0.014958614 | H87: 0.01498969826 | I87: 0.2374606356 | J87: 0.2379540829 | L87: -0.01923389553 | M87: 0.0134162075 | N87: 0.2129756915 | P87: 0.01498969826 | Q87: 0.2379540829
B88: 2016-02-04 | C88: 191.6 | E88: 0.001568217459 | F88: 0.001566989091 | G88: =STDEV(E88:E108) -> 0.01466711321 | H88: 0.01469354905 | I88: 0.2328332041 | J88: 0.2332528599 | L88: 0.001566989091 | M88: 0.01320222667 | N88: 0.2095788511 | P88: 0.01469354905 | Q88: 0.2332528599
B89: 2016-02-03 | C89: 191.3 | E89: 0.00599495162 | F89: 0.005977053394 | G89: =STDEV(E89:E109) -> 0.01466879885 | H89: 0.01469527385 | I89: 0.2328599627 | J89: 0.2332802404 | L89: 0.005977053394 | M89: 0.01331430834 | N89: 0.2113580925 | P89: 0.01469527385 | Q89: 0.2332802404
B90: 2016-02-02 | C90: 190.16 | E90: -0.01802220501 | F90: -0.01818658291 | G90: =STDEV(E90:E110) -> 0.01475462962 | H90: 0.01477796853 | I90: 0.234222484 | J90: 0.2345929777 | L90: -0.01818658291 | M90: 0.01384399017 | N90: 0.2197665309 | P90: 0.01477796853 | Q90: 0.2345929777
B91: 2016-02-01 | C91: 193.65 | E91: -0.0003654744354 | F91: -0.0003655412374 | G91: =STDEV(E91:E111) -> 0.01445268461 | H91: 0.01447215566 | I91: 0.2294292555 | J91: 0.2297383489 | L91: -0.0003655412374 | M91: 0.01374252331 | N91: 0.2181557944 | P91: 0.01447215566 | Q91: 0.2297383489
B92: 2016-01-29 | C92: 193.7208 | E92: 0.02438157686 | F92: 0.02408909086 | G92: =STDEV(E92:E112) -> 0.01446994391 | H92: 0.01448731924 | I92: 0.2297032384 | J92: 0.2299790632 | L92: 0.02408909086 | M92: 0.01408265517 | N92: 0.2235552203 | P92: 0.01448731924 | Q92: 0.2299790632
B93: 2016-01-28 | C93: 189.11 | E93: 0.005209163876 | F93: 0.005195643116 | G93: =STDEV(E93:E113) -> 0.01343848462 | H93: 0.01347934054 | I93: 0.2133293298 | J93: 0.2139778974 | L93: 0.005195643116 | M93: 0.0134193103 | N93: 0.2130249468 | P93: 0.01347934054 | Q93: 0.2139778974
B94: 2016-01-27 | C94: 188.13 | E94: -0.01088328076 | F94: -0.01094293689 | G94: =STDEV(E94:E114) -> 0.0132860056 | H94: 0.01332515186 | I94: 0.2109088004 | J94: 0.2115302281 | L94: -0.01094293689 | M94: 0.01341639453 | N94: 0.2129786605 | P94: 0.01332515186 | Q94: 0.2115302281
B95: 2016-01-26 | C95: 190.2 | E95: 0.01364314645 | F95: 0.01355091665 | G95: =STDEV(E95:E115) -> 0.01320469772 | H95: 0.01324572362 | I95: 0.2096180778 | J95: 0.2102693438 | L95: 0.01355091665 | M95: 0.01369649364 | N95: 0.2174250961 | P95: 0.01324572362 | Q95: 0.2102693438
B96: 2016-01-25 | C96: 187.64 | E96: -0.0151165232 | F96: -0.01523194247 | G96: =STDEV(E96:E116) -> 0.01312451374 | H96: 0.01316679121 | I96: 0.2083451967 | J96: 0.2090163306 | L96: -0.01523194247 | M96: 0.01339237126 | N96: 0.2125973028 | P96: 0.01316679121 | Q96: 0.2090163306
B97: 2016-01-22 | C97: 190.52 | E97: 0.02051529273 | F97: 0.02030768868 | G97: =STDEV(E97:E117) -> 0.01314081614 | H97: 0.01318399134 | I97: 0.2086039891 | J97: 0.2092893742 | L97: 0.02030768868 | M97: 0.01322616831 | N97: 0.2099589128 | P97: 0.01318399134 | Q97: 0.2092893742
B98: 2016-01-21 | C98: 186.69 | E98: 0.005601939133 | F98: 0.005586306626 | G98: =STDEV(E98:E118) -> 0.01230692416 | H98: 0.0123670655 | I98: 0.1953663644 | J98: 0.1963210785 | L98: 0.005586306626 | M98: 0.01250178807 | N98: 0.198459733 | P98: 0.0123670655 | Q98: 0.1963210785
B99: 2016-01-20 | C99: 185.65 | E99: -0.01281505902 | F99: -0.01289788023 | G99: =STDEV(E99:E119) -> 0.01289911658 | H99: 0.01296921144 | I99: 0.2047671276 | J99: 0.205879849 | L99: -0.01289788023 | M99: 0.01238517354 | N99: 0.1966085348 | P99: 0.01296921144 | Q99: 0.205879849
B100: 2016-01-19 | C100: 188.06 | E100: 0.001331132528 | F100: 0.001330247356 | G100: =STDEV(E100:E120) -> 0.01298683498 | H100: 0.01305777672 | I100: 0.2061596141 | J100: 0.2072857792 | L100: 0.001330247356 | M100: 0.01297384338 | N100: 0.2059533788 | P100: 0.01305777672 | Q100: 0.2072857792
B101: 2016-01-15 | C101: 187.81 | E101: -0.02146615954 | F101: -0.02169990872 | G101: =STDEV(E101:E121) -> 0.01360568893 | H101: 0.01367066065 | I101: 0.215983616 | J101: 0.2170150101 | L101: -0.02169990872 | M101: 0.01310245807 | N101: 0.2079950738 | P101: 0.01367066065 | Q101: 0.2170150101
B102: 2016-01-14 | C102: 191.93 | E102: 0.01641688291 | F102: 0.01628358282 | G102: =STDEV(E102:E122) -> 0.01334895875 | H102: 0.01340759383 | I102: 0.2119081507 | J102: 0.2128389537 | L102: 0.01628358282 | M102: 0.01271493815 | N102: 0.2018433857 | P102: 0.01340759383 | Q102: 0.2128389537
B103: 2016-01-13 | C103: 188.83 | E103: -0.02494464548 | F103: -0.02526103573 | G103: =STDEV(E103:E123) -> 0.01275867892 | H103: 0.01282582635 | I103: 0.2025377489 | J103: 0.2036036813 | L103: -0.02526103573 | M103: 0.01241465222 | N103: 0.1970764943 | P103: 0.01282582635 | Q103: 0.2036036813
B104: 2016-01-12 | C104: 193.6608 | E104: 0.008072458487 | F104: 0.008040050486 | G104: =STDEV(E104:E124) -> 0.01233304979 | H104: 0.01238875943 | I104: 0.1957810959 | J104: 0.1966654589 | L104: 0.008040050486 | M104: 0.01170706542 | N104: 0.185843902 | P104: 0.01238875943 | Q104: 0.1966654589
B105: 2016-01-11 | C105: 192.11 | E105: 0.0009743490879 | F105: 0.000973874718 | G105: =STDEV(E105:E125) -> 0.01214704905 | H105: 0.01220328728 | I105: 0.1928284258 | J105: 0.1937211799 | L105: 0.000973874718 | M105: 0.01155709723 | N105: 0.1834632309 | P105: 0.01220328728 | Q105: 0.1937211799
B106: 2016-01-08 | C106: 191.923 | E106: -0.0109610925 | F106: -0.01102160789 | G106: =STDEV(E106:E126) -> 0.01215051324 | H106: 0.01220455611 | I106: 0.192883418 | J106: 0.193741322 | L106: -0.01102160789 | M106: 0.01154611278 | N106: 0.1832888581 | P106: 0.01220455611 | Q106: 0.193741322
B107: 2016-01-07 | C107: 194.05 | E107: -0.02399155015 | F107: -0.02428403497 | G107: =STDEV(E107:E127) -> 0.0120554498 | H107: 0.01210967903 | I107: 0.1913743327 | J107: 0.192235195 | L107: -0.02428403497 | M107: 0.01146645535 | N107: 0.1820243357 | P107: 0.01210967903 | Q107: 0.192235195
B108: 2016-01-06 | C108: 198.82 | E108: -0.01261422328 | F108: -0.01269445804 | G108: =STDEV(E108:E128) -> 0.0111157854 | H108: 0.01115260137 | I108: 0.1764576227 | J108: 0.1770420581 | L108: -0.01269445804 | M108: 0.01070233135 | N108: 0.1698942432 | P108: 0.01115260137 | Q108: 0.1770420581
B109: 2016-01-05 | C109: 201.36 | E109: 0.001695360443 | F109: 0.001693924942 | G109: =STDEV(E109:E129) -> 0.01183457277 | H109: 0.01185749454 | I109: 0.1878680186 | J109: 0.1882318903 | L109: 0.001693924942 | M109: 0.0105387167 | N109: 0.1672969412 | P109: 0.01185749454 | Q109: 0.1882318903
B110: 2016-01-04 | C110: 201.0192 | E110: -0.01398342081 | F110: -0.01408210992 | G110: =STDEV(E110:E130) -> 0.01215191663 | H110: 0.01217491831 | I110: 0.1929056961 | J110: 0.1932708364 | L110: -0.01408210992 | M110: 0.01052509162 | N110: 0.1670806498 | P110: 0.01217491831 | Q110: 0.1932708364
B111: 2015-12-31 | C111: 203.87 | E111: -0.01000339921 | F111: -0.01005376941 | G111: =STDEV(E111:E131) -> 0.01198758901 | H111: 0.01200880817 | I111: 0.190297076 | J111: 0.1906339198 | L111: -0.01005376941 | M111: 0.010679064 | N111: 0.1695248855 | P111: 0.01200880817 | Q111: 0.1906339198
B112: 2015-12-30 | C112: 205.93 | E112: -0.007087753134 | F112: -0.007112990578 | G112: =STDEV(E112:E132) -> 0.01205227023 | H112: 0.01207516366 | I112: 0.1913238587 | J112: 0.1916872806 | L112: -0.007112990578 | M112: 0.01051869529 | N112: 0.1669791112 | P112: 0.01207516366 | Q112: 0.1916872806
B113: 2015-12-29 | C113: 207.4 | E113: 0.01067199454 | F113: 0.01061545074 | G113: =STDEV(E113:E133) -> 0.0119896782 | H113: 0.01201297839 | I113: 0.1903302408 | J113: 0.1907001199 | L113: 0.01061545074 | M113: 0.01077539589 | N113: 0.1710541067 | P113: 0.01201297839 | Q113: 0.1907001199
B114: 2015-12-28 | C114: 205.21 | E114: -0.002285103073 | F114: -0.002287717905 | G114: =STDEV(E114:E134) -> 0.01172616855 | H114: 0.0117499877 | I114: 0.186147155 | J114: 0.1865252721 | L114: -0.002287717905 | M114: 0.01082878584 | N114: 0.171901646 | P114: 0.0117499877 | Q114: 0.1865252721
B115: 2015-12-24 | C115: 205.68 | E115: -0.001650325211 | F115: -0.001651688498 | G115: =STDEV(E115:E135) -> 0.01172263395 | H115: 0.01174704657 | I115: 0.1860910449 | J115: 0.1864785831 | L115: -0.001651688498 | M115: 0.01112594103 | N115: 0.1766188383 | P115: 0.01174704657 | Q115: 0.1864785831
B116: 2015-12-23 | C116: 206.02 | E116: 0.01238329238 | F116: 0.01230724657 | G116: =STDEV(E116:E136) -> 0.011729639 | H116: 0.01175486252 | I116: 0.1862022466 | J116: 0.1866026575 | L116: 0.01230724657 | M116: 0.01114312419 | N116: 0.1768916126 | P116: 0.01175486252 | Q116: 0.1866026575
B117: 2015-12-22 | C117: 203.5 | E117: 0.009074230178 | F117: 0.009033306731 | G117: =STDEV(E117:E137) -> 0.01134413268 | H117: 0.01137086424 | I117: 0.1800825235 | J117: 0.1805068738 | L117: 0.009033306731 | M117: 0.01089644219 | N117: 0.1729756573 | P117: 0.01137086424 | Q117: 0.1805068738
B118: 2015-12-21 | C118: 201.67 | E118: 0.008245142505 | F118: 0.008211337011 | G118: =STDEV(E118:E138) -> 0.01115678826 | H118: 0.01118424851 | I118: 0.177108523 | J118: 0.1775444409 | L118: 0.008211337011 | M118: 0.01084519235 | N118: 0.1721620912 | P118: 0.01118424851 | Q118: 0.1775444409
B119: 2015-12-18 | C119: 200.0208 | E119: -0.02362198575 | F119: -0.02390545787 | G119: =STDEV(E119:E139) -> 0.01093228819 | H119: 0.01095936859 | I119: 0.1735446949 | J119: 0.1739745829 | L119: -0.02390545787 | M119: 0.01069571617 | N119: 0.1697892305 | P119: 0.01095936859 | Q119: 0.1739745829
B120: 2015-12-17 | C120: 204.86 | E120: -0.0152381868 | F120: -0.01535548106 | G120: =STDEV(E120:E140) -> 0.01040527571 | H120: 0.01040326302 | I120: 0.1651786311 | J120: 0.1651466806 | L120: -0.01535548106 | M120: 0.009834891683 | N120: 0.1561240654 | P120: 0.01040326302 | Q120: 0.1651466806
B121: 2015-12-16 | C121: 208.03 | E121: 0.01462804613 | F121: 0.01452208831 | G121: =STDEV(E121:E141) -> 0.009814055383 | H121: 0.009806259735 | I121: 0.1557932994 | J121: 0.1556695473 | L121: 0.01452208831 | M121: 0.009459830692 | N121: 0.1501701567 | P121: 0.009806259735 | Q121: 0.1556695473
B122: 2015-12-15 | C122: 205.0308 | E122: 0.01049774077 | F122: 0.0104430221 | G122: =STDEV(E122:E142) -> 0.009856143683 | H122: 0.009847578128 | I122: 0.1564614304 | J122: 0.1563254565 | L122: 0.0104430221 | M122: 0.009053786213 | N122: 0.1437244005 | P122: 0.009847578128 | Q122: 0.1563254565
B123: 2015-12-14 | C123: 202.9008 | E123: 0.00505646919 | F123: 0.005043728181 | G123: =STDEV(E123:E143) -> 0.009908511591 | H123: 0.009901387155 | I123: 0.1572927452 | J123: 0.1571796483 | L123: 0.005043728181 | M123: 0.009113547527 | N123: 0.1446730819 | P123: 0.009901387155 | Q123: 0.1571796483
B124: 2015-12-11 | C124: 201.88 | E124: -0.01938116287 | F124: -0.01957144015 | G124: =STDEV(E124:E144) -> 0.01024746853 | H124: 0.01024270705 | I124: 0.1626735198 | J124: 0.1625979337 | L124: -0.01957144015 | M124: 0.009066147433 | N124: 0.1439206287 | P124: 0.01024270705 | Q124: 0.1625979337
B125: 2015-12-10 | C125: 205.87 | E125: 0.00258108503 | F125: 0.00257775975 | G125: =STDEV(E125:E145) -> 0.009405330503 | H125: 0.009385366567 | I125: 0.1493049931 | J125: 0.1489880754 | L125: 0.00257775975 | M125: 0.008370270065 | N125: 0.132873918 | P125: 0.009385366567 | Q125: 0.1489880754
B126: 2015-12-09 | C126: 205.34 | E126: -0.007774862406 | F126: -0.007805244227 | G126: =STDEV(E126:E146) -> 0.009400916539 | H126: 0.009380896859 | I126: 0.1492349236 | J126: 0.148917121 | L126: -0.007805244227 | M126: 0.008628672432 | N126: 0.1369759284 | P126: 0.009380896859 | Q126: 0.148917121
B127: 2015-12-08 | C127: 206.949 | E127: -0.006724262059 | F127: -0.00674697177 | G127: =STDEV(E127:E147) -> 0.009466321152 | H127: 0.009446958871 | I127: 0.1502731896 | J127: 0.1499658229 | L127: -0.00674697177 | M127: 0.008516172212 | N127: 0.1351900428 | P127: 0.009446958871 | Q127: 0.1499658229
B128: 2015-12-07 | C128: 208.35 | E128: -0.006058582196 | F128: -0.006077009874 | G128: =STDEV(E128:E148) -> 0.009363964591 | H128: 0.009345041529 | I128: 0.1486483296 | J128: 0.1483479353 | L128: -0.006077009874 | M128: 0.008434784518 | N128: 0.1338980532 | P128: 0.009345041529 | Q128: 0.1483479353
B129: 2015-12-04 | C129: 209.62 | E129: 0.01950294246 | F129: 0.01931519721 | G129: =STDEV(E129:E149) -> 0.009274887919 | H129: 0.009256338115 | I129: 0.1472342812 | J129: 0.1469398122 | L129: 0.01931519721 | M129: 0.008572137245 | N129: 0.1360784601 | P129: 0.009256338115 | Q129: 0.1469398122
B130: 2015-12-03 | C130: 205.61 | E130: -0.01399805303 | F130: -0.01409694977 | G130: =STDEV(E130:E150) -> 0.008122192122 | H130: 0.008119273427 | I130: 0.1289358027 | J130: 0.1288894699 | L130: -0.01409694977 | M130: 0.008391107728 | N130: 0.1332047056 | P130: 0.008119273427 | Q130: 0.1288894699
B131: 2015-12-02 | C131: 208.529 | E131: -0.01020979685 | F131: -0.01026227432 | G131: =STDEV(E131:E151) -> 0.007611903782 | H131: 0.007603412336 | I131: 0.1208352265 | J131: 0.1207004289 | L131: -0.01026227432 | M131: 0.008027465162 | N131: 0.1274320589 | P131: 0.007603412336 | Q131: 0.1207004289
B132: 2015-12-01 | C132: 210.68 | E132: 0.009535674925 | F132: 0.009490497348 | G132: =STDEV(E132:E152) -> 0.007709899605 | H132: 0.007696732885 | I132: 0.1223908619 | J132: 0.1221818467 | L132: 0.009490497348 | M132: 0.007761675512 | N132: 0.123212779 | P132: 0.007696732885 | Q132: 0.1221818467
B133: 2015-11-30 | C133: 208.69 | E133: -0.00415155564 | F133: -0.004160197273 | G133: =STDEV(E133:E153) -> 0.007501599947 | H133: 0.007488583337 | I133: 0.1190842074 | J133: 0.1188775751 | L133: -0.004160197273 | M133: 0.007601548525 | N133: 0.1206708419 | P133: 0.007488583337 | Q133: 0.1188775751
B134: 2015-11-27 | C134: 209.56 | E134: =C134/C135-1 -> 0.001146569845 | F134: =LN(C134/C135) -> 0.001145913036 | G134: =STDEV(E134:E154) -> 0.00744312526 | H134: 0.007430400843 | I134: =G134*SQRT(252) -> 0.1181559505 | J134: =H134*SQRT(252) -> 0.1179539566 | L134: =LN(C134/C135) -> 0.001145913036 | M134: =STDEV(L134:L163) -> 0.00756857358 | N134: =M134*SQRT(252) -> 0.1201473808 | P134: =STDEV(L134:L154) -> 0.007430400843 | Q134: =P134*SQRT(252) -> 0.1179539566
B135: 2015-11-25 | C135: 209.32 | E135: -0.0001433006926 | F135: -0.0001433109611 | G135: =STDEV(E135:E155) -> 0.007834890494 | H135: 0.007820128032 | I135: 0.1243750308 | J135: 0.124140684 | L135: -0.0001433109611 | M135: 0.007992632143 | N135: 0.1268791018 | P135: 0.007820128032 | Q135: 0.124140684
B136: 2015-11-24 | C136: 209.35 | E136: 0.001339264361 | F136: 0.001338368347 | G136: =STDEV(E136:E156) -> 0.007853677223 | H136: 0.007838644543 | I136: 0.1246732609 | J136: 0.1244346245 | L136: 0.001338368347 | M136: 0.008073355425 | N136: 0.1281605442 | P136: 0.007838644543 | Q136: 0.1244346245
B137: 2015-11-23 | C137: 209.07 | E137: -0.001150442309 | F137: -0.001151104575 | G137: =STDEV(E137:E157) -> 0.007878676641 | H137: 0.007863040585 | I137: 0.1250701143 | J137: 0.1248218996 | L137: -0.001151104575 | M137: 0.008198211866 | N137: 0.1301425788 | P137: 0.007863040585 | Q137: 0.1248218996
B138: 2015-11-20 | C138: 209.3108 | E138: 0.003648046032 | F138: 0.003641408051 | G138: =STDEV(E138:E158) -> 0.008197454513 | H138: 0.008180961382 | I138: 0.1301305561 | J138: 0.1298687358 | L138: 0.003641408051 | M138: 0.008186179855 | N138: 0.1299515765 | P138: 0.008180961382 | Q138: 0.1298687358
B139: 2015-11-19 | C139: 208.55 | E139: -0.0008623580702 | F139: -0.0008627301149 | G139: =STDEV(E139:E159) -> 0.008894352915 | H139: 0.00886951055 | I139: 0.1411934753 | J139: 0.140799115 | L139: -0.0008627301149 | M139: 0.008174964499 | N139: 0.1297735382 | P139: 0.00886951055 | Q139: 0.140799115
B140: 2015-11-18 | C140: 208.73 | E140: 0.01586606317 | F140: 0.01574151288 | G140: =STDEV(E140:E160) -> 0.009039162761 | H140: 0.009014358015 | I140: 0.1434922604 | J140: 0.1430984972 | L140: 0.01574151288 | M140: 0.008286504987 | N140: 0.1315441886 | P140: 0.009014358015 | Q140: 0.1430984972
B141: 2015-11-17 | C141: 205.47 | E141: -0.0007295010213 | F141: -0.0007297672366 | G141: =STDEV(E141:E161) -> 0.008415713858 | H141: 0.00839637095 | I141: 0.1335953158 | J141: 0.1332882567 | L141: -0.0007297672366 | M141: 0.007946461669 | N141: 0.1261461683 | P141: 0.00839637095 | Q141: 0.1332882567
B142: 2015-11-16 | C142: 205.62 | E142: 0.01520687272 | F142: 0.01509240721 | G142: =STDEV(E142:E162) -> 0.008410844486 | H142: 0.008391733976 | I142: 0.133518017 | J142: 0.133214647 | L142: 0.01509240721 | M142: 0.007985131623 | N142: 0.1267600348 | P142: 0.008391733976 | Q142: 0.133214647
B143: 2015-11-13 | C143: 202.54 | E143: -0.01122827573 | F143: -0.01129178869 | G143: =STDEV(E143:E163) -> 0.00778217989 | H143: 0.007770041281 | I143: 0.1235382759 | J143: 0.1233455814 | L143: -0.01129178869 | M143: 0.008149923935 | N143: 0.1293760316 | P143: 0.007770041281 | Q143: 0.1233455814
B144: 2015-11-12 | C144: 204.84 | E144: -0.01395975739 | F144: -0.01405811121 | G144: =STDEV(E144:E164) -> 0.008010547154 | H144: 0.007988338283 | I144: 0.1271634938 | J144: 0.1268109389 | L144: -0.01405811121 | M144: 0.008157419623 | N144: 0.129495022 | P144: 0.007988338283 | Q144: 0.1268109389
B145: 2015-11-11 | C145: 207.74 | E145: -0.003931722286 | F145: -0.003939471826 | G145: =STDEV(E145:E165) -> 0.007358439877 | H145: 0.007326159022 | I145: 0.1168116117 | J145: 0.116299169 | L145: -0.003939471826 | M145: 0.007562404528 | N145: 0.1200494502 | P145: 0.007326159022 | Q145: 0.116299169
B146: 2015-11-10 | C146: 208.56 | E146: 0.002306805075 | F146: 0.002304148485 | G146: =STDEV(E146:E166) -> 0.007467736718 | H146: 0.007436272574 | I146: 0.1185466453 | J146: 0.1180471675 | L146: 0.002304148485 | M146: 0.007967042771 | N146: 0.1264728831 | P146: 0.007436272574 | Q146: 0.1180471675
B147: 2015-11-09 | C147: 208.08 | E147: -0.009331555894 | F147: -0.009375367629 | G147: =STDEV(E147:E167) -> 0.007467784075 | H147: 0.007436080727 | I147: 0.118547397 | J147: 0.118044122 | L147: -0.009375367629 | M147: 0.007975813935 | N147: 0.126612121 | P147: 0.007436080727 | Q147: 0.118044122
B148: 2015-11-06 | C148: 210.04 | E148: -0.0005234356412 | F148: -0.0005235726815 | G148: =STDEV(E148:E168) -> 0.007043473895 | H148: 0.007008249915 | I148: 0.1118116818 | J148: 0.1112525184 | L148: -0.0005235726815 | M148: 0.009347283813 | N148: 0.1483835304 | P148: 0.007008249915 | Q148: 0.1112525184
B149: 2015-11-05 | C149: 210.15 | E149: -0.000998288648 | F149: -0.00099878727 | G149: =STDEV(E149:E169) -> 0.007174683745 | H149: 0.007139969171 | I149: 0.1138945736 | J149: 0.1133434968 | L149: -0.00099878727 | M149: 0.009344121828 | N149: 0.1483333355 | P149: 0.007139969171 | Q149: 0.1133434968
B150: 2015-11-04 | C150: 210.36 | E150: -0.003033175355 | F150: -0.003037784755 | G150: =STDEV(E150:E170) -> 0.007229024259 | H150: 0.007195099564 | I150: 0.1147572025 | J150: 0.1142186646 | L150: -0.003037784755 | M150: 0.00939357712 | N150: 0.1491184139 | P150: 0.007195099564 | Q150: 0.1142186646
B151: 2015-11-03 | C151: 211 | E151: 0.002899377347 | F151: 0.002895182259 | G151: =STDEV(E151:E171) -> 0.007245814095 | H151: 0.007211957783 | I151: 0.1150237328 | J151: 0.1144862806 | L151: 0.002895182259 | M151: 0.009366565237 | N151: 0.1486896135 | P151: 0.007211957783 | Q151: 0.1144862806
B152: 2015-11-02 | C152: 210.39 | E152: 0.01183090463 | F152: 0.01176146662 | G152: =STDEV(E152:E172) -> 0.007937273857 | H152: 0.007895146792 | I152: 0.1260003163 | J152: 0.1253315699 | L152: 0.01176146662 | M152: 0.009804866789 | N152: 0.155647435 | P152: 0.007895146792 | Q152: 0.1253315699
B153: 2015-10-30 | C153: 207.93 | E153: -0.004309725614 | F153: -0.004319039251 | G153: =STDEV(E153:E173) -> 0.008124072548 | H153: 0.008079469686 | I153: 0.1289656536 | J153: 0.1282576051 | L153: -0.004319039251 | M153: 0.009657730135 | N153: 0.153311713 | P153: 0.008079469686 | Q153: 0.1282576051
B154: 2015-10-29 | C154: 208.83 | E154: -0.0005743000718 | F154: -0.0005744650452 | G154: =STDEV(E154:E174) -> 0.007914429722 | H154: 0.007869908837 | I154: 0.1256376769 | J154: 0.1249309297 | L154: -0.0005744650452 | M154: 0.01053238297 | N154: 0.1671963963 | P154: 0.007869908837 | Q154: 0.1249309297
B155: 2015-10-28 | C155: 208.95 | E155: 0.01137463698 | F155: 0.01131043221 | G155: =STDEV(E155:E175) -> 0.008419989347 | H155: 0.008369070279 | I155: 0.1336631871 | J155: 0.132854872 | L155: 0.01131043221 | M155: 0.01054811811 | N155: 0.1674461839 | P155: 0.008369070279 | Q155: 0.132854872
B156: 2015-10-27 | C156: 206.6 | E156: -0.00193236715 | F156: -0.00193423658 | G156: =STDEV(E156:E176) -> 0.008331601082 | H156: 0.008279945439 | I156: 0.1322600669 | J156: 0.131440059 | L156: -0.00193423658 | M156: 0.01047260115 | N156: 0.1662473893 | P156: 0.008279945439 | Q156: 0.131440059
B157: 2015-10-26 | C157: 207 | E157: -0.002457712881 | F157: -0.002460738015 | G157: =STDEV(E157:E177) -> 0.0105592363 | H157: 0.01055982431 | I157: 0.1676226797 | J157: 0.167632014 | L157: -0.002460738015 | M157: 0.01064441973 | N157: 0.1689749248 | P157: 0.01055982431 | Q157: 0.167632014
B158: 2015-10-23 | C158: 207.51 | E158: 0.0109617071 | F158: 0.01090206306 | G158: =STDEV(E158:E178) -> 0.01050871499 | H158: 0.01050983651 | I158: 0.1668206788 | J158: 0.1668384823 | L158: 0.01090206306 | M158: 0.01066429393 | N158: 0.1692904178 | P158: 0.01050983651 | Q158: 0.1668384823
B159: 2015-10-22 | C159: 205.26 | E159: 0.01689373297 | F159: 0.01675262092 | G159: =STDEV(E159:E179) -> 0.01047503411 | H159: 0.01047459456 | I159: 0.1662860113 | J159: 0.1662790338 | L159: 0.01675262092 | M159: 0.01053903184 | N159: 0.1673019439 | P159: 0.01047459456 | Q159: 0.1662790338
B160: 2015-10-21 | C160: 201.85 | E160: -0.006105667438 | F160: -0.006124383246 | G160: =STDEV(E160:E180) -> 0.01000119366 | H160: 0.01000608355 | I160: 0.1587640275 | J160: 0.158841652 | L160: -0.006124383246 | M160: 0.01017268803 | N160: 0.1614864161 | P160: 0.01000608355 | Q160: 0.158841652
B161: 2015-10-20 | C161: 203.09 | E161: -0.001376800905 | F161: -0.001377749566 | G161: =STDEV(E161:E181) -> 0.01038358118 | H161: 0.01039193169 | I161: 0.1648342411 | J161: 0.1649668013 | L161: -0.001377749566 | M161: 0.01043925544 | N161: 0.1657180426 | P161: 0.01039193169 | Q161: 0.1649668013
B162: 2015-10-19 | C162: 203.37 | E162: 0.000491956511 | F162: 0.0004918355401 | G162: =STDEV(E162:E182) -> 0.01038693349 | H162: 0.01039671506 | I162: 0.1648874574 | J162: 0.1650427351 | L162: 0.0004918355401 | M162: 0.01129888382 | N162: 0.1793642201 | P162: 0.01039671506 | Q162: 0.1650427351
B163: 2015-10-16 | C163: 203.27 | E163: 0.004546577712 | F163: 0.004536273249 | G163: =STDEV(E163:E183) -> 0.0115739064 | H163: 0.01160014351 | I163: 0.1837300681 | J163: 0.1841465694 | L163: 0.004536273249 | M163: 0.01172027326 | N163: 0.1860535701 | P163: 0.01160014351 | Q163: 0.1841465694
B164: 2015-10-15 | C164: 202.35 | E164: 0.01535450851 | F164: 0.01523782098 | G164: =STDEV(E164:E184) -> 0.0115618618 | H164: 0.01158644887 | I164: 0.183538866 | J164: 0.1839291737 | L164: 0.01523782098 | M164: 0.01170453602 | N164: 0.1858037491 | P164: 0.01158644887 | Q164: 0.1839291737
B165: 2015-10-14 | C165: 199.29 | E165: -0.004794007491 | F165: -0.004805535603 | G165: =STDEV(E165:E185) -> 0.01122158086 | H165: 0.0112514387 | I165: 0.1781370737 | J165: 0.1786110521 | L165: -0.004805535603 | M165: 0.01186931451 | N165: 0.1884195266 | P165: 0.0112514387 | Q165: 0.1786110521
B166: 2015-10-13 | C166: 200.25 | E166: -0.00630210401 | F166: -0.006322046096 | G166: =STDEV(E166:E186) -> 0.0114641449 | H166: 0.01149375394 | I166: 0.1819876584 | J166: 0.1824576874 | L166: -0.006322046096 | M166: 0.01316261951 | N166: 0.2089501069 | P166: 0.01149375394 | Q166: 0.1824576874
B167: 2015-10-12 | C167: 201.52 | E167: 0.0009437242338 | F167: 0.0009432792061 | G167: =STDEV(E167:E187) -> 0.01139441351 | H167: 0.01142441774 | I167: 0.1808807069 | J167: 0.1813570093 | L167: 0.0009432792061 | M167: 0.0131982982 | N167: 0.2095164885 | P167: 0.01142441774 | Q167: 0.1813570093
B168: 2015-10-09 | C168: 201.33 | E168: 0.0005963918294 | F168: 0.0005962140585 | G168: =STDEV(E168:E188) -> 0.0114173386 | H168: 0.01144812334 | I168: 0.1812446315 | J168: 0.1817333241 | L168: 0.0005962140585 | M168: 0.0131979738 | N168: 0.2095113389 | P168: 0.01144812334 | Q168: 0.1817333241
B169: 2015-10-08 | C169: 201.21 | E169: 0.009026628554 | F169: 0.008986132058 | G169: =STDEV(E169:E189) -> 0.01144968226 | H169: 0.01148146296 | I169: 0.1817580711 | J169: 0.1822625741 | L169: 0.008986132058 | M169: 0.01391203598 | N169: 0.2208467247 | P169: 0.01148146296 | Q169: 0.1822625741
B170: 2015-10-07 | C170: 199.41 | E170: 0.008190505081 | F170: 0.008157144928 | G170: =STDEV(E170:E190) -> 0.01176302442 | H170: 0.01179467255 | I170: 0.1867322237 | J170: 0.1872346222 | L170: 0.008157144928 | M170: 0.01537884716 | N170: 0.2441316302 | P170: 0.01179467255 | Q170: 0.1872346222
B171: 2015-10-06 | C171: 197.79 | E171: -0.00342621051 | F171: -0.003432093411 | G171: =STDEV(E171:E191) -> 0.0128449459 | H171: 0.01285057631 | I171: 0.2039071948 | J171: 0.2039965747 | L171: -0.003432093411 | M171: 0.01554727572 | N171: 0.2468053508 | P171: 0.01285057631 | Q171: 0.2039965747
B172: 2015-10-05 | C172: 198.47 | E172: 0.01779487179 | F172: 0.01763839664 | G172: =STDEV(E172:E192) -> 0.01330841972 | H172: 0.01331718006 | I172: 0.2112646136 | J172: 0.2114036797 | L172: 0.01763839664 | M172: 0.01742009978 | N172: 0.2765355109 | P172: 0.01331718006 | Q172: 0.2114036797
B173: 2015-10-02 | C173: 195 | E173: 0.01493780253 | F173: 0.01482733232 | G173: =STDEV(E173:E193) -> 0.01272644447 | H173: 0.01274087284 | I173: 0.2020260428 | J173: 0.2022550861 | L173: 0.01482733232 | M173: 0.01802246435 | N173: 0.2860977521 | P173: 0.01274087284 | Q173: 0.2022550861
B174: 2015-10-01 | C174: 192.13 | E174: 0.002818518712 | F174: 0.002814554136 | G174: =STDEV(E174:E194) -> 0.012991914 | H174: 0.01300067135 | I174: 0.206240241 | J174: 0.2063792596 | L174: 0.002814554136 | M174: 0.01809379135 | N174: 0.2872300331 | P174: 0.01300067135 | Q174: 0.2063792596
B175: 2015-09-30 | C175: 191.59 | E175: 0.01844567297 | F175: 0.01827761503 | G175: =STDEV(E175:E195) -> 0.01452414661 | H175: 0.01456767539 | I175: 0.2305636797 | J175: 0.2312546776 | L175: 0.01827761503 | M175: 0.01808734048 | N175: 0.2871276287 | P175: 0.01456767539 | Q175: 0.2312546776
B176: 2015-09-29 | C176: 188.12 | E176: 0.001117556277 | F176: 0.001116932276 | G176: =STDEV(E176:E196) -> 0.01385104293 | H176: 0.0139003497 | I176: 0.21987849 | J176: 0.2206612106 | L176: 0.001116932276 | M176: 0.01763361855 | N176: 0.2799250164 | P176: 0.0139003497 | Q176: 0.2206612106
B177: 2015-09-28 | C177: 187.91 | E177: -0.02561576355 | F177: -0.02594955985 | G177: =STDEV(E177:E197) -> 0.01383848348 | H177: 0.01388747675 | I177: 0.2196791148 | J177: 0.2204568589 | L177: -0.02594955985 | M177: 0.01769475659 | N177: 0.2808955526 | P177: 0.01388747675 | Q177: 0.2204568589
B178: 2015-09-25 | C178: 192.85 | E178: -0.0002592016589 | F178: -0.0002592352574 | G178: =STDEV(E178:E198) -> 0.01403009669 | H178: 0.01403863646 | I178: 0.2227208802 | J178: 0.222856445 | L178: -0.0002592352574 | M178: 0.01722513272 | N178: 0.2734405049 | P178: 0.01403863646 | Q178: 0.222856445
B179: 2015-09-24 | C179: 192.9 | E179: -0.003615702479 | F179: -0.003622254931 | G179: =STDEV(E179:E199) -> 0.01637542198 | H179: 0.01631337022 | I179: 0.2599517651 | J179: 0.2589667239 | L179: -0.003622254931 | M179: 0.01722140035 | N179: 0.2733812553 | P179: 0.01631337022 | Q179: 0.2589667239
B180: 2015-09-23 | C180: 193.6 | E180: -0.0015986798 | F180: -0.001599959052 | G180: =STDEV(E180:E200) -> 0.01660906024 | H180: 0.0165474176 | I180: 0.2636606575 | J180: 0.2626821109 | L180: -0.001599959052 | M180: 0.01723458289 | N180: 0.2735905217 | P180: 0.0165474176 | Q180: 0.2626821109
B181: 2015-09-22 | C181: 193.91 | E181: -0.01297974142 | F181: -0.01306471435 | G181: =STDEV(E181:E201) -> 0.01897646181 | H181: 0.01900053996 | I181: 0.3012419923 | J181: 0.301624221 | L181: -0.01306471435 | M181: 0.01727499144 | N181: 0.2742319874 | P181: 0.01900053996 | Q181: 0.301624221
B182: 2015-09-21 | C182: 196.46 | E182: 0.005167562036 | F182: 0.005154256008 | G182: =STDEV(E182:E202) -> 0.0199470103 | H182: 0.01999621027 | I182: 0.3166489719 | J182: 0.3174299972 | L182: 0.005154256008 | M182: 0.01737931676 | N182: 0.2758881006 | P182: 0.01999621027 | Q182: 0.3174299972
B183: 2015-09-18 | C183: 195.45 | E183: -0.02142892905 | F183: -0.02166186224 | G183: =STDEV(E183:E203) -> 0.02031205591 | H183: 0.02035813913 | I183: 0.3224438914 | J183: 0.3231754398 | L183: -0.02166186224 | M183: 0.01732829447 | N183: 0.2750781469 | P183: 0.02035813913 | Q183: 0.3231754398
B184: 2015-09-17 | C184: 199.73 | E184: -0.002247976821 | F184: -0.002250507314 | G184: =STDEV(E184:E204) -> 0.01990334933 | H184: 0.0199464559 | I184: 0.3159558755 | J184: 0.3166401712 | L184: -0.002250507314 | M184: 0.01697799285 | N184: 0.269517281 | P184: 0.0199464559 | Q184: 0.3166401712
B185: 2015-09-16 | C185: 200.18 | E185: 0.008666733851 | F185: 0.008629393305 | G185: =STDEV(E185:E205) -> 0.01990394503 | H185: 0.01994674452 | I185: 0.3159653319 | J185: 0.3166447528 | L185: 0.008629393305 | M185: 0.01700318033 | N185: 0.2699171199 | P185: 0.01994674452 | Q185: 0.3166447528
B186: 2015-09-15 | C186: 198.46 | E186: 0.01249936228 | F186: 0.01242189015 | G186: =STDEV(E186:E206) -> 0.01983091222 | H186: 0.0198731163 | I186: 0.314805972 | J186: 0.315475941 | L186: 0.01242189015 | M186: 0.01689526679 | N186: 0.2682040456 | P186: 0.0198731163 | Q186: 0.315475941
B187: 2015-09-14 | C187: 196.01 | E187: -0.003710480838 | F187: -0.003717381747 | G187: =STDEV(E187:E207) -> 0.01959162634 | H187: 0.01963297366 | I187: 0.3110074264 | J187: 0.3116637947 | L187: -0.003717381747 | M187: 0.01667990596 | N187: 0.2647852984 | P187: 0.01963297366 | Q187: 0.3116637947
B188: 2015-09-11 | C188: 196.74 | E188: 0.004544294103 | F188: 0.004533999973 | G188: =STDEV(E188:E208) -> 0.01959322727 | H188: 0.01963573059 | I188: 0.3110328404 | J188: 0.3117075598 | L188: 0.004533999973 | M188: 0.01667864469 | N188: 0.2647652764 | P188: 0.01963573059 | Q188: 0.3117075598
B189: 2015-09-10 | C189: 195.85 | E189: 0.00544175779 | F189: 0.005427004923 | G189: =STDEV(E189:E209) -> 0.01954514338 | H189: 0.01958634262 | I189: 0.3102695324 | J189: 0.3109235499 | L189: 0.005427004923 | M189: 0.01663629397 | N189: 0.2640929794 | P189: 0.01958634262 | Q189: 0.3109235499
B190: 2015-09-09 | C190: 194.79 | E190: -0.01337182799 | F190: -0.01346203595 | G190: =STDEV(E190:E210) -> 0.01949378031 | H190: 0.01952907639 | I190: 0.3094541688 | J190: 0.3100144767 | L190: -0.01346203595 | M190: 0.01666163471 | N190: 0.2644952512 | P190: 0.01952907639 | Q190: 0.3100144767
B191: 2015-09-08 | C191: 197.43 | E191: 0.02513110753 | F191: 0.0248205142 | G191: =STDEV(E191:E211) -> 0.01966070749 | H191: 0.01970258984 | I191: 0.3121040557 | J191: 0.3127689174 | L191: 0.0248205142 | M191: 0.01673293202 | N191: 0.265627061 | P191: 0.01970258984 | Q191: 0.3127689174
B192: 2015-09-04 | C192: 192.59 | E192: -0.01513679366 | F192: -0.01525252427 | G192: =STDEV(E192:E212) -> 0.01863402144 | H192: 0.01868850432 | I192: 0.2958059199 | J192: 0.2966708089 | L192: -0.01525252427 | M192: 0.01598677809 | N192: 0.2537822346 | P192: 0.01868850432 | Q192: 0.2966708089
B193: 2015-09-03 | C193: 195.55 | E193: 0.000716442352 | F193: 0.0007161858297 | G193: =STDEV(E193:E213) -> 0.01848137782 | H193: 0.01853626966 | I193: 0.2933827776 | J193: 0.2942541586 | L193: 0.0007161858297 | M193: 0.01587862606 | N193: 0.2520653743 | P193: 0.01853626966 | Q193: 0.2942541586
B194: 2015-09-02 | C194: 195.41 | E194: 0.01898107107 | F194: 0.01880317809 | G194: =STDEV(E194:E214) -> 0.0185200867 | H194: 0.01857599798 | I194: 0.2939972621 | J194: 0.2948848261 | L194: 0.01880317809 | M194: 0.01587798852 | N194: 0.2520552536 | P194: 0.01857599798 | Q194: 0.2948848261
B195: 2015-09-01 | C195: 191.77 | E195: -0.02984772601 | F195: -0.03030223631 | G195: =STDEV(E195:E215) -> 0.01782126107 | H195: 0.01788096776 | I195: 0.2829037491 | J195: 0.2838515633 | L195: -0.03030223631 | M195: 0.01535657783 | N195: 0.2437781155 | P195: 0.01788096776 | Q195: 0.2838515633
B196: 2015-08-31 | C196: 197.67 | E196: -0.008079084705 | F196: -0.00811189736 | G196: =STDEV(E196:E216) -> 0.01681813514 | H196: 0.01685754872 | I196: 0.2669796186 | J196: 0.2676052898 | L196: -0.00811189736 | M196: 0.01448814506 | N196: 0.2299921727 | P196: 0.01685754872 | Q196: 0.2676052898
B197: 2015-08-28 | C197: 199.28 | E197: 5.018316857e-05 | F197: 5.018190943e-05 | G197: =STDEV(E197:E217) -> 0.01677713081 | H197: 0.01681882841 | I197: 0.2663286951 | J197: 0.2669906239 | L197: 5.018190943e-05 | M197: 0.01445698632 | N197: 0.2294975431 | P197: 0.01681882841 | Q197: 0.2669906239
B198: 2015-08-27 | C198: 199.27 | E198: =C198/C199-1 -> 0.02473516404 | F198: =LN(C198/C199) -> 0.02443420266 | G198: =STDEV(E198:E218) -> 0.01677862576 | H198: 0.01682039612 | I198: =G198*SQRT(252) -> 0.2663524267 | J198: =H198*SQRT(252) -> 0.2670155105 | L198: =LN(C198/C199) -> 0.02443420266 | M198: =STDEV(L198:L227) -> 0.01446187957 | N198: =M198*SQRT(252) -> 0.229575221 | P198: =STDEV(L198:L218) -> 0.01682039612 | Q198: =P198*SQRT(252) -> 0.2670155105
B199: 2015-08-26 | C199: 194.46 | E199: 0.03839376302 | F199: 0.03767506061 | G199: =STDEV(E199:E219) -> 0.01574844172 | H199: 0.01581112934 | I199: 0.2499987619 | J199: 0.2509938972 | L199: 0.03767506061 | M199: 0.01371337083 | N199: 0.2176930132 | P199: 0.01581112934 | Q199: 0.2509938972
B200: 2015-08-25 | C200: 187.27 | E200: -0.01202848853 | F200: -0.01210141619 | G200: =STDEV(E200:E220) -> 0.01309173521 | H200: 0.01326624174 | I200: 0.2078248535 | J200: 0.2105950588 | L200: -0.01210141619 | M200: 0.01142295825 | N200: 0.1813338406 | P200: 0.01326624174 | Q200: 0.2105950588
B201: 2015-08-24 | C201: 189.55 | E201: -0.0408844811 | F201: -0.04174375369 | G201: =STDEV(E201:E221) -> 0.01298590437 | H201: 0.01316200732 | I201: 0.206144841 | J201: 0.2089403887 | L201: -0.04174375369 | M201: 0.01141135172 | N201: 0.1811495926 | P201: 0.01316200732 | Q201: 0.2089403887
... 5683 more rows
